[Event "3rd Rio Open 2024"]
[Site "Rio de Janeiro"]
[Date "2024.04.23"]
[Round "2.1"]
[White "Fier, Alexandr"]
[Black "Fonseca, Luis Ernesto Serra A"]
[Result "1-0"]
[ECO "C54"]
[WhiteElo "2566"]
[BlackElo "2018"]
[Annotator "TA"]
[PlyCount "63"]
[EventDate "2024.04.12"]
[EventType "swiss"]
[EventCountry "BRA"]
[SourceTitle "playchess.com"]
[Source "ChessBase"]
[SourceQuality "1"]
[TimeControl "5400+30"]

{[%evp 16,63,24,10,40,30,21,14,22,25,33,28,28,37,49,35,41,37,37,39,56,48,74,61,60,76,175,0,203,47,180,178,439,434,439,420,475,464,6325,4066,29975,29976,29976,29977,29972,29955,6087,5585,29985,29982]} 1. e4 {[%emt 0:00:03]} e5 {[%emt 0:01:20]} 2. Nf3 {[%emt 0:00:06]} Nc6 {[%emt 0:00:10]} 3. Bc4 {[%emt 0:00:03]} Bc5 {[%emt 0:00:15]} 4. c3 {[%emt 0:00:05]} Nf6 {[%emt 0:00:05]} 5. d4 {[%emt 0:00:04]} exd4 {[%emt 0:00:04]} 6. e5 {[%emt 0:00:04]} d5 {[%emt 0:01:38]} 7. Bb5 {[%emt 0:00:06]} Ne4 {[%emt 0:00:20]} 8. cxd4 {[%emt 0:00:05]} Bb4+ {[%emt 0:00:56]} 9. Bd2 {[%emt 0:00:13]} Bd7 {[%emt 0:04:33]} 10. Bxb4 {[%emt 0:02:57]} Nxb4 {[%emt 0:00:15]} 11. Bxd7+ {[%emt 0:00:04]} Qxd7 {[%emt 0:00:09] The position is equal.} 12. O-O {[%emt 0:00:05]} O-O {[%emt 0:00:22]} 13. Nc3 {[%emt 0:00:04]} Nxc3 {[%emt 0:04:09]} 14. bxc3 {[%emt 0:00:04]} Nc6 {[%emt 0:00:22]} 15. Qb1 {[%emt 0:01:02]} b6 {[%emt 0:02:12]} 16. Ng5 {[%emt 0:00:05][%csl Gg5][%cal Rb1h7]} g6 {[%emt 0:00:28]} 17. f4 {[%emt 0:00:05]} Ne7 {[%emt 0:02:05]} 18. Qd3 {[%emt 0:00:31]} c5 {[%emt 0:01:53]} 19. Rae1 {[%emt 0:00:14][%cal Og5f7] White is much more active.} cxd4 {[%emt 0:01:26]} 20. cxd4 {[%emt 0:01:42][%cal Og5f7] And now Nxf7! would win.} Rac8 {[%emt 0:01:38] [#]} (20... f6 $16 21. Nf7 Rac8 (21... Rxf7 $2 22. e6 $18)) 21. h3 $2 {[%emt 0:06:43]} ({White has to play} 21. Nxf7 $1 $18 Rc6 (21... Rxf7 $2 22. e6 $18) 22. Nd6) 21... Rc4 $2 {[%emt 0:02:46] [#]} (21... Qa4 $11 {and Black has nothing to worry.}) 22. g4 $2 {[%emt 0:00:10]} (22. Nxf7 $1 $18 Nf5 (22... Rxf7 $2 {is the wrong capture.} 23. e6 $18) 23. e6) 22... Qa4 {[%emt 0:05:17] This move loses the game for Black.} ({Better is} 22... Qc8 $14) 23. f5 $18 {[%emt 0:02:04][%cal Bf4f5,Bf5f6,Bf6f7][%mdl 32]} Qc2 $2 {[%emt 0:05:05]} (23... Rxd4 24. Qe3 Rxg4+ (24... h6 $2 25. f6 $18) 25. hxg4 Qxg4+ 26. Kh2 Qh5+ 27. Kg2 Qg4+ 28. Qg3 Qxg3+ 29. Kxg3 Nxf5+ 30. Kf2 d4) 24. Qxc2 {[%emt 0:00:35]} Rxc2 {[%emt 0:00:07]} 25. f6 {[%emt 0:00:03]} Nc6 {[%emt 0:02:42][%cal Oh7h6]} 26. e6 {[%emt 0:00:06]} Nxd4 {[%emt 0:11:54]} (26... Nd8 $142 27. e7 Re8 28. exd8=N (28. exd8=R Rxd8 29. Re7 Rf8 $18) 28... Rxd8) 27. exf7+ {[%emt 0:00:09]} Rxf7 {[%emt 0:04:14]} 28. Re8+ {[%emt 0:00:05]} Rf8 {[%emt 0:00:54]} 29. f7+ {[%emt 0:00:05]} Kg7 {[%emt 0:00:53]} 30. Rxf8 {[%emt 0:00:05]} Ne2+ {[%emt 0:01:58]} 31. Kh2 {[%emt 0:00:04] White wants to mate with Rg8+.} Nd4+ {[%emt 0:04:23]} 32. Kh1 {[%emt 0:00:08] Weighted Error Value: White=0.24 (precise) /Black=0.87.  Loses game:     	---       	Black=1      Missed win:     	White=1     	---        Mistake:       	White=1     	Black=4      Inaccurate:     	---       	Black=1      OK:         	White=7     	Black=3      Best:        	White=4     	Black=1} 1-0

[Event "3rd Rio Open 2024"]
[Site "Rio de Janeiro"]
[Date "2024.04.23"]
[Round "2.2"]
[White "Dias, Clara"]
[Black "Matsuura, Everaldo"]
[Result "0-1"]
[ECO "B48"]
[WhiteElo "2018"]
[BlackElo "2380"]
[Annotator "TA"]
[PlyCount "63"]
[EventDate "2024.04.12"]
[EventType "swiss"]
[EventCountry "BRA"]
[SourceTitle "playchess.com"]
[Source "ChessBase"]
[SourceQuality "1"]
[TimeControl "5400+30"]

{[%evp 16,63,18,8,15,0,50,37,52,0,5,0,0,0,0,0,0,0,0,0,0,0,0,0,6,-30,-34,-94,-98,-141,-154,-157,-157,-153,-152,-136,-138,-124,-125,-148,-150,-256,-228,-302,-288,-2767,-972,-2149,-997,-1552]} 1. e4 {[%emt 0:00:03]} c5 {[%emt 0:06:58]} 2. Nf3 {[%emt 0:00:08]} e6 {[%emt 0:00:15]} 3. d4 {[%emt 0:00:09]} cxd4 {[%emt 0:00:08]} 4. Nxd4 {[%emt 0:00:09]} Nc6 {[%emt 0:00:09]} 5. Nc3 {[%emt 0:02:24]} Qc7 {[%emt 0:00:18]} 6. Be3 {[%emt 0:05:12]} a6 {[%emt 0:00:20]} 7. Qd2 {[%emt 0:04:04]} Nf6 {[%emt 0:00:27]} 8. f3 {[%emt 0:02:52]} b5 {[%emt 0:01:25]} 9. g4 {[%emt 0:13:22]} Bb7 {[%emt 0:02:16]} 10. g5 {[%emt 0:02:38]} Nh5 {[%emt 0:00:32]} ({Black should try} 10... Nxd4 $11 11. Bxd4 Nh5) 11. O-O-O {[%emt 0:07:01]} Ne5 {[%emt 0:14:16] White is slightly better.} 12. Rg1 {[%emt 0:12:48]} (12. Kb1 $14) 12... Bb4 $1 $11 {[%emt 0:07:59]} 13. f4 {[%emt 0:15:31]} Bxc3 {[%emt 0:18:28]} 14. Qxc3 {[%emt 0:05:10]} Qxc3 {[%emt 0:00:22]} 15. bxc3 {[%emt 0:00:11]} Nc4 {[%emt 0:01:13]} 16. Bxc4 {[%emt 0:00:11]} bxc4 {[%emt 0:00:09]} 17. e5 {[%emt 0:00:11]} g6 {[%emt 0:05:00]} 18. Kd2 {[%emt 0:01:25]} Ng7 {[%emt 0:12:42]} 19. Rb1 {[%emt 0:02:21]} Be4 {[%emt 0:02:33] Black is weak on the dark squares} 20. Rb4 {[%emt 0:04:07][%cal Og1b1]} h6 {[%emt 0:00:36]} 21. Re1 {[%emt 0:11:42]} (21. f5 $15 hxg5 (21... exf5 22. gxh6 Nh5 23. Ne2 $14) 22. fxg6) 21... hxg5 $17 {[%emt 0:01:26]} 22. Bg1 {[%emt 0:01:41] [#]} Bd5 {[%emt 0:00:59]} 23. fxg5 {[%emt 0:00:23]} Rh5 {[%emt 0:01:23]} 24. Ne2 {[%emt 0:01:45]} Rxg5 {[%emt 0:01:48][%cal Og7f5]} 25. Nf4 {[%emt 0:00:11]} Rg4 {[%emt 0:13:34]} 26. Nxd5 {[%emt 0:03:32]} exd5 {[%emt 0:00:06]} 27. Rb6 {[%emt 0:00:16]} Ne6 {[%emt 0:01:49] [#] ...Ng5 would now be deadly.} 28. Rd6 {[%emt 0:01:56]} (28. Be3 $17) 28... Rg2+ {[%emt 0:02:23]} 29. Kd1 {[%emt 0:02:52]} Rb8 {[%emt 0:00:32][%cal Rb8b1]} 30. Be3 $2 {[%emt 0:00:37]} (30. Kc1) 30... Rb1+ $19 {[%emt 0:02:44]} (30... Rxh2 $2 31. Kc1 $19) 31. Bc1 {[%emt 0:00:05]} Nc5 {[%emt 0:00:41]} (31... Nd4 $142 32. Rb6 Rxb6 33. cxd4 Rb1 (33... Rxh2 $2 34. Re2 $19)) 32. Rxd5 {[%emt 0:01:33] Weighted Error Value: White=0.49/Black=0.26 (precise) .  Mistake:       	White=4     	Black=1      Inaccurate:     	White=4     	---        OK:         	White=4     	Black=10     Best:        	White=1     	Black=3      Strong:       	---       	Black=1} 0-1

[Event "3rd Rio Open 2024"]
[Site "Rio de Janeiro"]
[Date "2024.04.23"]
[Round "2.3"]
[White "Urquiza, Marcello de Albuquer"]
[Black "Lima, Darcy"]
[Result "0-1"]
[ECO "B83"]
[WhiteElo "2005"]
[BlackElo "2369"]
[Annotator "TA"]
[PlyCount "62"]
[EventDate "2024.04.12"]
[EventType "swiss"]
[EventCountry "BRA"]
[SourceTitle "playchess.com"]
[Source "ChessBase"]
[SourceQuality "1"]
[TimeControl "5400+30"]

{[%evp 20,62,0,0,0,0,0,0,17,0,15,6,12,23,18,12,9,-14,-17,-29,98,-35,-40,-142,-139,-133,-146,-212,-179,-235,-214,-330,-222,-241,-203,-347,-250,-893,-843,-816,-806,-1083,-993,-1270,-1222]} 1. e4 {[%emt 0:00:10]} c5 {[%emt 0:00:16]} 2. Nf3 {[%emt 0:00:22]} e6 {[%emt 0:00:10]} 3. d4 {[%emt 0:00:22]} cxd4 {[%emt 0:00:05]} 4. Nxd4 {[%emt 0:00:06]} Nf6 {[%emt 0:00:05]} 5. Nc3 {[%emt 0:00:47]} d6 {[%emt 0:00:06]} 6. Be2 {[%emt 0:02:53]} Be7 {[%emt 0:00:20]} 7. O-O {[%emt 0:02:15]} O-O {[%emt 0:01:10]} 8. Be3 {[%emt 0:01:46]} Nc6 {[%emt 0:00:05][%cal Bb8c6,Bc6a5,Ba5c4][%mdl 32]} 9. Nb3 {[%emt 0:07:18]} a6 {[%emt 0:00:25]} 10. a4 {[%emt 0:01:31]} b6 {[%emt 0:00:27][%cal Bb7b6,Bb6b5][%mdl 32]} 11. f4 {[%emt 0:03:52]} Bb7 {[%emt 0:00:07]} 12. Bf3 {[%emt 0:01:50]} Nd7 {[%emt 0:01:04]} 13. Qe1 {[%emt 0:14:37]} Na5 {[%emt 0:04:06] The position is equal.} 14. Rd1 {[%emt 0:08:10]} Nc4 {[%emt 0:01:41]} 15. Bc1 {[%emt 0:00:53]} b5 {[%emt 0:04:00]} 16. Kh1 {[%emt 0:04:42]} Qb6 {[%emt 0:05:27]} 17. Nd4 {[%emt 0:19:50]} Bf6 {[%emt 0:07:11]} 18. e5 {[%emt 0:11:26]} (18. Nde2 {simplifies} b4 19. b3 bxc3 20. bxc4 Qc7 21. Ba3) 18... dxe5 {[%emt 0:01:24]} 19. Nxe6 {[%emt 0:05:16]} Rfe8 {[%emt 0:10:13] [#]} (19... fxe6 $11 {keeps the balance.} 20. Rxd7 Bxf3 21. Rxf3 exf4 22. Bxf4 e5 (22... Nxb2 $2 23. Be5 $18)) 20. Rxd7 {[%emt 0:03:32]} (20. Nd5 $1 $16 {[%cal Rd5b6]} Bxd5 21. Bxd5) 20... Bxf3 $15 {[%emt 0:00:34]} 21. Rxf3 {[%emt 0:00:27]} (21. Nxg7 $15 Bxg2+ (21... Bxg7 22. gxf3 exf4 23. Re7 $15) 22. Kxg2 Bxg7 23. axb5) 21... Qxe6 $17 {[%emt 0:04:45]} (21... fxe6 22. b3 Qc6 23. Rfd3 $16) 22. Rd1 {[%emt 0:01:03] [#]} e4 $1 $36 {[%emt 0:01:04][%mdl 2048] Black is in control. Black is more active.} 23. f5 {[%emt 0:03:58]} (23. Rf2 $17) 23... Qc6 $19 {[%emt 0:02:22]} 24. Rf4 {[%emt 0:01:28]} (24. axb5 $142 axb5 25. Rf4) 24... e3 {[%emt 0:07:34]} (24... bxa4 25. Nd5 $17) 25. Rd3 {[%emt 0:02:11]} (25. Qe2 {is a better defense.}) 25... Bg5 {[%emt 0:03:43]} ({Much less strong is} 25... bxa4 26. Nd5 Be5 (26... Nxb2 $2 27. Nxf6+ Qxf6 28. Rxe3 $19) (26... Bxb2 27. Rxc4 Qxc4 28. Bxb2 $11) 27. Rf1 Bxb2 28. Bxb2 Nxb2 29. Rxe3 Rxe3 30. Nxe3) 26. Rg4 {[%emt 0:00:52]} f6 {[%emt 0:00:10] ...Ne5 would now be deadly.} 27. h4 {[%emt 0:01:06]} (27. Rgd4 $142) 27... Bh6 {[%emt 0:00:07] Hoping for ...Ne5.} 28. Nd5 $2 {[%emt 0:00:34]} (28. axb5 axb5 29. Rd1) 28... Ne5 {[%emt 0:00:51] Black is clearly winning.} (28... bxa4 $2 29. Rgd4 (29. Qc3 $2 e2 $19) 29... Re5 30. Nb4 $19) 29. Rgd4 {[%emt 0:00:54]} Nxd3 {[%emt 0:00:21]} 30. Rxd3 {[%emt 0:00:23]} Qxc2 {[%emt 0:04:44]} 31. Rc3 {[%emt 0:00:52]} Qf2 {[%emt 0:00:26] Weighted Error Value: White=0.99/Black=0.26 (precise) .  Mistake:       	White=7     	Black=1      Inaccurate:     	---       	Black=1      OK:         	White=4     	Black=8      Best:        	---       	Black=3} 0-1

[Event "3rd Rio Open 2024"]
[Site "Rio de Janeiro"]
[Date "2024.04.23"]
[Round "2.4"]
[White "Piccoli, Lucas Fonseca"]
[Black "Soares, Joao Carlos T. C."]
[Result "1-0"]
[ECO "C02"]
[WhiteElo "2274"]
[BlackElo "1991"]
[Annotator "TA"]
[PlyCount "85"]
[EventDate "2024.04.12"]
[EventType "swiss"]
[EventCountry "BRA"]
[SourceTitle "playchess.com"]
[Source "ChessBase"]
[SourceQuality "1"]
[TimeControl "5400+30"]

{[%evp 14,85,40,40,49,38,40,43,56,31,20,33,52,0,0,0,-4,-11,20,0,43,33,48,33,97,91,183,182,246,166,172,164,164,165,339,321,566,554,720,344,393,318,842,854,825,603,1333,1285,1647,1235,1385,1366,1383,1348,1346,1291,1358,1298,2304,1351,1166,943,936,903,930,880,5414,4049,29977,1258,5385,1646,1562,1448]} 1. e4 {[%emt 0:00:04][%cal Be2e4,Be4e5][%mdl 32]} e6 {[%emt 0:06:37]} 2. d4 {[%emt 0:00:08]} d5 {[%emt 0:00:21]} 3. e5 {[%emt 0:00:07]} c5 {[%emt 0:00:06]} 4. c3 {[%emt 1:32:11]} Qb6 {[%emt 0:00:42]} 5. Nf3 {[%emt 0:00:00]} Nc6 {[%emt 0:00:12]} 6. Be2 {[%emt 0:00:00]} Bd7 {[%emt 0:00:39]} 7. O-O {[%emt 0:00:00]} Rc8 {[%emt 0:00:45]} 8. dxc5 {[%emt 0:00:00]} Bxc5 {[%emt 0:00:19]} 9. b4 {[%emt 0:00:00]} Be7 {[%emt 0:05:19]} 10. Bf4 {[%emt 0:00:00]} Nh6 {[%emt 0:05:35][%cal Bg8h6,Bh6f5,Bf5h4,Bh4f3][%mdl 32] White is slightly better.} 11. a3 {[%emt 0:00:00]} Nf5 {[%emt 0:04:41]} 12. Bd3 {[%emt 0:00:00]} h6 {[%emt 0:13:58]} 13. g4 {[%emt 0:00:00]} (13. h3 $14) 13... Nh4 $11 {[%emt 0:09:26]} 14. Nbd2 {[%emt 0:00:00]} Nxf3+ {[%emt 0:03:55]} 15. Nxf3 {[%emt 0:00:00]} a6 {[%emt 0:14:11]} 16. Rc1 {[%emt 0:00:00]} Qa7 {[%emt 0:11:40]} 17. a4 {[%emt 0:00:00]} Qb8 {[%emt 0:01:17]} 18. Qe2 {[%emt 0:00:00]} Na7 {[%emt 0:05:56]} (18... h5 $14) 19. b5 $16 {[%emt 0:00:00] White is more active. Black is on the road to losing.} a5 {[%emt 0:02:05]} (19... axb5 $16 20. axb5 Qc7) 20. Bg3 $18 {[%emt 0:00:00]} h5 {[%emt 0:02:29]} (20... Rd8 {was worth a try.} 21. Qe3 Ba3) 21. h3 {[%emt 0:00:00]} Rc5 {[%emt 0:01:32]} 22. Nd4 {[%emt 0:00:00]} Nc8 {[%emt 0:01:05]} 23. gxh5 {[%emt 0:00:51]} Nb6 $2 {[%emt 0:00:34] [#]} (23... Qc7 {might work better.} 24. Qg4 Bf8) 24. Qg4 $1 {[%emt 0:00:48]} Kf8 {[%emt 0:01:25]} (24... Bf8 25. f4 (25. Nb3 Rc7 $18) 25... Nc4) 25. f4 {[%emt 0:00:25] Hoping for f5.} Nc4 {[%emt 0:01:42]} 26. Qe2 {[%emt 0:00:28] Repels Ne3} (26. f5 $142 Ne3 27. Qf3 Nxf5 28. Bxf5 exf5 29. e6 (29. Nxf5 Be6 $18)) 26... Rh6 {[%emt 0:05:00]} 27. Kh2 {[%emt 0:03:25] f5 is the strong threat.} g6 {[%emt 0:00:54]} (27... Kg8 28. Rg1 Kh8) 28. hxg6 {[%emt 0:00:28]} fxg6 {[%emt 0:00:01]} 29. Rce1 {[%emt 0:04:39]} Kf7 {[%emt 0:01:27][%cal Bf8f7,Bf7e8,Be8d7][%mdl 32] [#]} 30. f5 $1 {[%emt 0:00:24][%mdl 512]} gxf5 {[%emt 0:00:20] [#]} (30... Kg8 31. f6) 31. Bxf5 $1 {[%emt 0:00:05][%cal Oe2g4][%mdl 512] Black must now prevent Qg4!} Qh8 {[%emt 0:01:01]} (31... Kg7 32. Nxe6+) 32. Bxe6+ {[%emt 0:01:12]} Ke8 {[%emt 0:00:00]} 33. Bxd7+ {[%emt 0:01:06]} Kxd7 {[%emt 0:00:02]} 34. Qg4+ {[%emt 0:00:05]} Ke8 {[%emt 0:00:28]} 35. Nf5 {[%emt 0:00:54]} Nd2 {[%emt 0:00:37]} 36. Rf2 {[%emt 0:00:06]} Rc4 {[%emt 0:01:06]} 37. Rf4 {[%emt 0:00:55]} Rxf4 {[%emt 0:00:22]} 38. Bxf4 {[%emt 0:00:12]} Rxh3+ {[%emt 0:00:18]} 39. Kg2 {[%emt 0:00:23] Intending Nd6+ and mate.} Rh7 {[%emt 0:01:16]} 40. Nd6+ {[%emt 0:00:55]} Bxd6 {[%emt 0:00:35]} 41. Qg6+ {[%emt 0:00:31]} (41. exd6+ $142 Ne4 42. Qc8+ Kf7 43. Qf5+ (43. Qxb7+ Kf6 $11) 43... Qf6 44. Qxh7+ Ke6 45. Rxe4+ dxe4 46. Qxe4+ Kd7 47. Qxb7+ Ke6 48. Qe4+ (48. Qc8+ Kf7 $18) 48... Kf7 49. d7) 41... Kf8 {[%emt 0:00:31]} 42. Qxd6+ {[%emt 0:00:15]} (42. exd6 $142 Ne4 43. Rf1 (43. Qf5+ Qf6 $18)) 42... Ke8 {[%emt 0:00:15]} 43. Qb8+ {[%emt 0:01:23] Weighted Error Value: White=0.51/Black=0.69.  Mistake:       	White=2     	Black=6      Inaccurate:     	White=1     	Black=2      OK:         	White=5     	Black=5      Best:        	White=3     	Black=1      Strong:       	White=1     	---} (43. Bxd2 {leads to mate.} Rh2+ 44. Kg1 Rh1+ 45. Kf2 Qh4+ 46. Ke2 Rh2+ 47. Kd1 Qxa4+ 48. Kc1 Qa1+ (48... Qxb5 49. Qe6+ Kf8 50. Rg1) 49. Kc2 Qa2+ (49... Qxe1 50. Qb8+ Ke7 51. Qxb7+ Kd8 52. Qb8+ Ke7 53. Qb7+ Kd8 54. Qxd5+ Kc7 55. c4 $14) 50. Kc1 Qxd2+ 51. Kb1 Qxe1#) 1-0

[Event "3rd Rio Open 2024"]
[Site "Rio de Janeiro"]
[Date "2024.04.23"]
[Round "2.5"]
[White "Manzi, Luiz Antonio Bardaro"]
[Black "De Siqueira, Luigy Lira"]
[Result "1-0"]
[ECO "A08"]
[WhiteElo "1975"]
[BlackElo "2274"]
[Annotator "TA"]
[PlyCount "89"]
[EventDate "2024.04.12"]
[EventType "swiss"]
[EventCountry "BRA"]
[SourceTitle "playchess.com"]
[Source "ChessBase"]
[SourceQuality "1"]
[TimeControl "5400+30"]

{[%evp 10,89,-13,-31,-18,-5,0,-20,-3,-35,0,-74,-56,-60,-58,-148,-136,-170,-168,-167,-166,-170,-158,-197,-197,-198,-199,-231,-235,-234,-199,-220,-193,-199,-210,-248,-145,-114,-113,-115,-115,-213,-186,-210,-178,-176,146,158,162,175,423,62,62,76,895,899,985,950,1474,1439,1189,416,416,418,418,410,453,437,459,440,431,405,472,470,528,406,4818,908,948,893,1127,1102]} 1. Nf3 {[%emt 0:00:03]} d5 {[%emt 0:11:49]} 2. g3 {[%emt 0:00:26]} c5 {[%emt 0:01:25]} 3. Bg2 {[%emt 0:00:13]} Nc6 {[%emt 0:00:05]} 4. O-O {[%emt 0:01:05]} e5 {[%emt 0:01:32]} 5. d3 {[%emt 0:00:10]} Be7 {[%emt 0:00:41]} 6. Nbd2 {[%emt 0:00:09]} h5 {[%emt 0:00:27]} 7. e4 {[%emt 0:00:52]} d4 {[%emt 0:00:33]} 8. Nc4 {[%emt 0:01:09]} Qc7 {[%emt 0:01:10] The position is equal.} 9. a4 {[%emt 0:01:03]} h4 {[%emt 0:00:14]} 10. Ne1 {[%emt 0:03:43]} (10. Nxh4 $11 {remains equal.} Bxh4 11. gxh4) 10... hxg3 {[%emt 0:01:49]} 11. fxg3 {[%emt 0:00:09]} Be6 {[%emt 0:00:21]} 12. Qf3 {[%emt 0:01:07]} (12. a5 $1 $15) 12... O-O-O $17 {[%emt 0:04:29]} 13. b3 {[%emt 0:01:29]} f6 {[%emt 0:00:42]} 14. Qf2 {[%emt 0:01:23]} Qd7 {[%emt 0:00:38]} 15. Bd2 {[%emt 0:01:06]} Nh6 {[%emt 0:00:08]} 16. Bxh6 {[%emt 0:01:22]} Rxh6 {[%emt 0:02:10]} (16... gxh6 17. Nf3 $15) 17. Nf3 {[%emt 0:00:15]} Rdh8 {[%emt 0:01:04]} 18. Ncd2 {[%emt 0:00:52]} Kb8 {[%emt 0:00:26]} 19. Rfb1 {[%emt 0:02:08]} Nd8 {[%emt 0:01:20]} 20. Nf1 {[%emt 0:00:15]} Nf7 {[%emt 0:00:33]} 21. Nh4 {[%emt 0:01:11]} Nd6 {[%emt 0:01:23]} 22. a5 {[%emt 0:01:04]} g5 {[%emt 0:02:43]} ({Black should try} 22... a6 $19 23. Nf3 Nb5) 23. Nf5 {[%emt 0:00:58]} Bxf5 {[%emt 0:02:26]} 24. exf5 {[%emt 0:00:13] White is weak on the dark squares} Qxf5 {[%emt 0:00:07]} ({Reject} 24... Nxf5 $6 25. a6 $15) 25. Qd2 {[%emt 0:00:52]} (25. Qxf5 $17 Nxf5 26. Re1) 25... Qh7 $19 {[%emt 0:02:32][%cal Rh6h2] [#] White must now prevent ...Rxh2.} 26. a6 {[%emt 0:01:23]} b6 {[%emt 0:00:49][%cal Rh6h2] Hoping for ...Rxh2.} 27. Qe2 {[%emt 0:01:14]} Rxh2 $2 {[%emt 1:02:24]} (27... g4 $19 {[%cal Rh6h2] And now ...Rxh2 would win.} 28. Bd5 Bd8) 28. Nxh2 $16 {[%emt 0:00:35]} Qxh2+ {[%emt 0:00:00]} 29. Kf2 {[%emt 0:00:12] [#] Rh1 would now be deadly.} Rh3 $2 {[%emt 0:00:00]} (29... Qh7 {is a better defense.}) 30. Qf3 $2 {[%emt 0:00:19]} (30. Qg4 $18 Rh4 31. gxh4) 30... e4 $1 $14 {[%emt 0:00:00]} 31. dxe4 {[%emt 0:00:27]} g4 $2 {[%emt 0:00:00][%mdl 8192] A mistake that costs the game.} 32. Qf4 $18 {[%emt 0:00:49]} Kc8 {[%emt 0:00:00]} 33. Rh1 {[%emt 0:00:21]} Nxe4+ {[%emt 0:00:00]} 34. Qxe4 {[%emt 0:00:53]} Qxg3+ {[%emt 0:00:00]} 35. Ke2 {[%emt 0:00:12]} (35. Kf1 $142) 35... Qe3+ {[%emt 0:00:00]} 36. Qxe3 {[%emt 0:00:08]} Rxe3+ {[%emt 0:00:00]} 37. Kd2 {[%emt 0:00:11]} c4 {[%emt 0:00:00]} 38. Bb7+ {[%emt 0:01:28]} Kd7 {[%emt 0:00:00]} 39. bxc4 {[%emt 0:00:21]} Bb4+ {[%emt 0:00:00]} 40. Kc1 {[%emt 0:00:08]} f5 {[%emt 0:00:00]} 41. Rb1 {[%emt 0:01:09]} Bc3 {[%emt 0:00:00]} 42. Rxb6 {[%emt 0:01:14]} f4 {[%emt 0:00:00]} (42... axb6 $142 43. a7 Re8) 43. Rg6 {[%emt 0:00:30] Rh7+ is the strong threat. White is clearly winning.} Bb4 {[%emt 0:00:00]} 44. Rh7+ {[%emt 0:00:42]} Be7 {[%emt 0:00:00]} 45. Rxg4 {[%emt 0:00:35] Weighted Error Value: White=0.66/Black=0.44.  Loses game:     	---       	Black=1      Missed win:     	White=1     	Black=1      Mistake:       	White=3     	Black=3      Inaccurate:     	White=2     	Black=1      OK:         	White=8     	Black=11     Best:        	White=2     	---        Strong:       	---       	Black=1} 1-0

[Event "3rd Rio Open 2024"]
[Site "Rio de Janeiro"]
[Date "2024.04.24"]
[Round "3.1"]
[White "Guimaraes, Wagner Peixoto"]
[Black "Fier, Alexandr"]
[Result "0-1"]
[ECO "B14"]
[WhiteElo "2140"]
[BlackElo "2566"]
[Annotator "TA"]
[PlyCount "74"]
[EventDate "2024.04.12"]
[EventType "swiss"]
[EventCountry "BRA"]
[SourceTitle "playchess.com"]
[Source "ChessBase"]
[SourceQuality "1"]
[TimeControl "5400+30"]

{[%evp 20,74,-13,-43,-27,-51,-29,-108,-100,-85,-40,-78,-56,-99,-91,-98,-77,-89,-96,-89,-72,-97,-101,-100,-100,-89,-100,-111,-80,-156,-150,-169,-169,-166,-168,-199,-195,-233,-238,-234,-227,-250,-229,-268,-258,-263,-232,-291,-289,-262,-289,-360,-345,-405,-375,-551,-455]} 1. Nf3 {[%emt 0:00:30]} c5 {[%emt 0:01:20]} 2. c4 {[%emt 0:00:14]} Nc6 {[%emt 0:00:05]} 3. e3 {[%emt 0:01:56]} Nf6 {[%emt 0:00:10]} 4. d4 {[%emt 0:00:09]} cxd4 {[%emt 0:00:05]} 5. exd4 {[%emt 0:00:06]} d5 {[%emt 0:00:04]} 6. Nc3 {[%emt 0:00:07]} g6 {[%emt 0:00:12]} 7. cxd5 {[%emt 0:00:21]} Nxd5 {[%emt 0:00:04]} 8. Bc4 {[%emt 0:00:47]} Nb6 {[%emt 0:00:06]} 9. Bb3 {[%emt 0:02:33]} Bg7 {[%emt 0:01:14]} 10. Be3 {[%emt 0:00:27]} O-O {[%emt 0:00:06]} 11. h3 {[%emt 0:00:21]} Na5 {[%emt 0:01:52]} 12. Bc2 {[%emt 0:04:51]} Nac4 {[%emt 0:02:24]} 13. b3 {[%emt 0:06:20]} (13. Bc1 $11 {keeps the balance.}) 13... Nxe3 $17 {[%emt 0:01:41] Black is better.} 14. fxe3 {[%emt 0:00:02]} Be6 {[%emt 0:00:14] [#] Strongly threatening ...Rc8.} 15. Bd3 {[%emt 0:14:51]} Rc8 {[%emt 0:00:24]} 16. Rc1 {[%emt 0:03:52]} Bh6 {[%emt 0:01:35] Black is more active.} 17. Qd2 {[%emt 0:01:25]} Nd5 {[%emt 0:03:05]} (17... Bd5 {with more complications.} 18. h4 Qd6 19. Rc2 Bxf3 20. gxf3 Bxe3 21. Qxe3 Rxc3 22. Rxc3 Nd5) 18. Nxd5 {[%emt 0:01:32] [#] Rxc8 would now be deadly.} Rxc1+ {[%emt 0:00:02]} 19. Qxc1 {[%emt 0:00:07]} Bxd5 {[%emt 0:00:02]} 20. O-O {[%emt 0:00:51]} Bxf3 {[%emt 0:00:04]} 21. Rxf3 {[%emt 0:01:20]} Qxd4 {[%emt 0:00:07]} 22. exd4 {[%emt 0:02:00]} Bxc1 {[%emt 0:00:41][%mdl 4096] Endgame. KRB-KRB} 23. Bc4 {[%emt 0:03:18]} Ba3 {[%emt 0:00:25]} 24. b4 {[%emt 0:03:43]} Bxb4 {[%emt 0:00:24]} 25. Rb3 {[%emt 0:00:06]} a5 {[%emt 0:00:03]} 26. a3 {[%emt 0:00:08]} Bd6 {[%emt 0:00:04]} 27. Rxb7 {[%emt 0:00:52]} Bxa3 {[%emt 0:00:04]} ({Don't take} 27... Rc8 28. Bd5 $19) 28. Kf1 {[%emt 0:00:58]} Rd8 {[%emt 0:00:22]} 29. d5 {[%emt 0:00:24]} Rc8 {[%emt 0:00:04]} 30. Bb3 {[%emt 0:01:26]} Kg7 {[%emt 0:00:13]} 31. Ke2 {[%emt 0:01:51]} Rc3 {[%emt 0:00:07]} 32. Ba4 {[%emt 0:00:47]} h5 {[%emt 0:01:24]} 33. Bb3 {[%emt 0:05:44]} h4 {[%emt 0:00:11]} 34. Ba4 {[%emt 0:00:41]} Bb4 {[%emt 0:00:26]} 35. Kf2 {[%emt 0:07:16]} Ra3 {[%emt 0:00:14]} 36. Bc6 {[%emt 0:00:28]} Ra2+ {[%emt 0:00:04]} 37. Kf3 {[%emt 0:01:00]} (37. Kf1 $142) 37... Bc5 {[%emt 0:00:07] Weighted Error Value: White=0.38/Black=0.10 (very precise) .  Mistake:       	White=3     	---        Inaccurate:     	White=2     	Black=1      OK:         	White=3     	Black=12     Best:        	---       	Black=3} 0-1